Cogmind - Beta 17 @@@ ROGUE MODE // 2026.06.23 @ 11:01:18 Player: MikaelaRen Result: Destroyed by S-10 Pest with Light Assault Rifle Performance ------------- Evolutions (0) 0 Regions Visited (1) 200 Robots Destroyed (10) 50 Value Destroyed (218) 218 Prototype IDs (0) 0 Alien Tech Used (0) 0 Bonus (0) 0 TOTAL SCORE: 468 Bonus ------- None Cogmind --------- Core Integrity 0/250 Matter 290/300 Energy 125/125 System Corruption 0% Temperature Cool (0) Movement Core (50) Location -10/Materials Parts ------- > --- POWER (1) -------- Light Ion Engine > --- PROPULSION (2) --- (None) > --- UTILITY (2) ------ (None) > --- WEAPON (2) ------- (None) > --- INVENTORY (5) ---- Aluminum Leg Wheel Compact Wheel High-capacity Matter Pod (154) Peak State ------------ > --- POWER ------------ Light Nuclear Core > --- PROPULSION ------- Light Treads Light Treads > --- UTILITY ---------- Small Storage Unit Seismic Detector > --- WEAPON ----------- Assault Rifle Light Assault Rifle > --- INVENTORY -------- Light Ion Engine Aluminum Leg Aluminum Leg Wheel Compact Wheel High-capacity Matter Pod Medium Laser Datajack [Rating: 9] Favorites ----------- Power Light Ion Engine Engine Light Ion Engine Power Core Light Nuclear Core Propulsion Light Treads Treads Light Treads Leg Aluminum Leg Utility Small Storage Unit Device Seismic Detector Storage Small Storage Unit Weapon Assault Rifle Energy Gun Medium Laser Ballistic Gun Assault Rifle Build | -11 -10 ------- Run | Yrd Mat Slots Evolved . | . . Power . | . . Propulsion . | . . Utility . | . . Weapon . | . . Parts Attached 7 | 3 4 Power 2 | . 2 Engine 1 | . 1 Core 1 | . 1 Reactor . | . . Propulsion 2 | 2 . Treads 2 | 2 . Leg . | . . Wheel . | . . Hover . | . . Flight . | . . Utility 1 | 1 . Device 1 | 1 . Storage . | . . Processor . | . . Hackware . | . . Protection . | . . Artifact . | . . Weapon 2 | . 2 Energy Gun 1 | . 1 Energy Cannon . | . . Ballistic Gun 1 | . 1 Ballistic Cannon . | . . Launcher . | . . Special Weapon . | . . Impact Weapon . | . . Slashing Weapon . | . . Piercing Weapon . | . . Special Melee Weapon . | . . Unidentified Prototypes . | . . Parts Lost 1 | . 1 Power . | . . Propulsion . | . . Utility . | . . Weapon 1 | . 1 Highest Loss Streak 1 | . 1 To Critical Strikes . | . . Average Backups 7 | 6 7 Power . | 1 . Propulsion 3 | 4 3 Utility . | . . Weapon . | 1 . Tool/Special . | . . Unused Backups 12 | 4 8 Power 1 | 1 . Propulsion 4 | . 4 Utility 2 | 1 1 Weapon 4 | 2 2 Tool/Special 1 | . 1 Average Slot Usage (%) 94 | . 94 Engine 9 | . 9 Core 4 | . 4 Treads 26 | . 26 Device 13 | . 13 Storage 13 | . 13 Energy Gun 7 | . 7 Ballistic Gun 18 | . 18 Peak Build Rating 9 | 7 9 Average Rating 7 | 6 7 On Entrance 6 | 6 7 Avg Prop Armor Cover (%) . | . . Naked Turns 24 | . 24 Heaviest Build 14 | 13 14 Greatest Support 40 | 40 40 Greatest Overweight (x) . | . . Average Overweight (x) . | . . Largest Inventory Capacity 8 | 8 8 Average Capacity 7 | 8 7 Most Carried 8 | 6 8 Average Carried 7 | 6 7 Final Capacity 8 | 8 5 Final Carried 6 | 6 4 Class Distribution -------------------- 100% | Mutant Dominant Class ---------------- Mutant | -10/Materials Resources | -11 -10 ----------- Run | Yrd Mat Matter Collected 531 | 200 331 Remotely . | . . Salvage Created 287 | 29 258 Parts 17 | 3 14 Haulers Intercepted . | . . Recyclers Shooed 1 | 1 . Parts Field Recycled . | . . Retrieved Matter . | . . Parts Self-Destructed . | . . Prevented . | . . Parts Restored . | . . Kills | -11 -10 ------- Run | Yrd Mat Combat Hostiles Destroyed 7 | . 7 Guns 7 | . 7 Classes Destroyed 5 | 1 4 Tunneler 1 | 1 . Operator 1 | . 1 Watcher 1 | . 1 Swarmer 3 | . 3 Grunt 4 | . 4 Best Kill Streak 3 | 1 3 Combat Bots Only 3 | . 3 Max Kills in Single Turn 1 | 1 1 Gunslinging . | . . Exploded . | . . Melee . | . . Uniques/NPCs Destroyed . | . . Combat | -11 -10 -------- Run | Yrd Mat Hostile Shots Fired 96 | . 96 Missed 34 | . 34 Hits 62 | . 62 Projectile 62 | . 62 Damage Taken 663 | . 663 Core 253 | . 253 Absorbed by Shields . | . . Core Remaining (%) 100 | 100 . Volleys Fired 40 | 2 38 Largest 2 | 2 2 Hottest 70 | 70 70 Shots Fired 79 | 4 75 Gun 79 | 4 75 Cannon . | . . Launcher . | . . Special . | . . Kinetic 56 | 2 54 Thermal 23 | 2 21 Explosive . | . . Electromagnetic . | . . Robot Hit Streak 7 | 3 7 Robot Miss Streak 3 | . 3 Penetration Max . | . . Secondary Targets 4 | . 4 Max Gunslinging Chain 1 | . 1 Shots Hit Robots 50 | 3 47 Core Hits 19 | 1 18 Critical Kills . | . . Critical Parts Destroyed . | . . Critical Strikes 1 | . 1 Burn 1 | . 1 Melee Attacks . | . . Impact . | . . Slashing . | . . Piercing . | . . Sneak Attacks . | . . Combat Hostiles . | . . Follow-up Attacks . | . . Damage Inflicted 557 | 37 520 Guns 557 | 37 520 Cannons . | . . Explosions . | . . Melee . | . . Ramming . | . . Kinetic 395 | 25 370 Thermal 162 | 12 150 Explosive . | . . Electromagnetic . | . . Impact . | . . Slashing . | . . Piercing . | . . Highest Corruption . | . . Average Corruption . | . . Corruption Purged . | . . Corruption Blocked . | . . Overload Shots . | . . Overflow Damage . | . . Projectiles . | . . Explosions . | . . Melee . | . . Knockbacks . | . . Impact . | . . Kinetic . | . . Secondary . | . . Self-Inflicted Damage . | . . Shots . | . . Rammed . | . . Targets Rammed . | . . Kicked . | . . Crushed . | . . Highest Temperature 214 | 9 214 Average Temperature 42 | 6 44 Received Heat Transfer 309 | . 309 Effects 3 | . 3 Interference 3 | . 3 Siege Activations . | . . Martial Activations . | . . Shielding Activations . | . . Robots Disrupted . | . . Combat Hostiles . | . . Robots Corrupted . | . . Combat Hostiles . | . . Parts Fried . | . . Impact Corruptions . | . . Robots Melted . | . . Combat Hostiles . | . . Parts Melted 3 | . 3 Heat Transferred 555 | 37 518 Parts Sabotaged . | . . Parts Stolen . | . . Parts Stripped . | . . Power Chain Reactions . | . . Alert | -11 -10 ------- Run | Yrd Mat Maximum Alert Level . | . . Low Security (%) 100 | 100 100 Level 1 . | . . Level 2 . | . . Level 3 . | . . Level 4 . | . . Level 5 . | . . High Security . | . . Max Security . | . . Peak Influence 77 | 5 77 Initial . | . . Average 15 | 1 15 Influence Increases 308 | 5 303 Destroy 0b10 Robot/C 140 | . 140 Destroy 0b10 Robot/NC 15 | 5 10 Destroy Leader 42 | . 42 Successful Hack 21 | . 21 Lose Combat Pursuer 90 | . 90 Influence Decreases 231 | 5 226 Time Decay 231 | 5 226 Squads Dispatched 4 | . 4 Investigation . | . . Extermination . | . . Reinforcement 4 | . 4 Assault . | . . Garrison . | . . Intercept . | . . Searches Triggered . | . . Construction Impeded . | . . Haulers Reinforced . | . . Active Scanning Responses . | . . Cargo Convoy Interrupts . | . . Stealth | -11 -10 --------- Run | Yrd Mat Distress Signals 3 | . 3 Communications Jammed . | . . Distress Signals . | . . Times Spotted 24 | . 24 Peak Tracking Total 5 | . 5 Tactical Retreats 2 | . 2 Traps | -11 -10 ------- Run | Yrd Mat Traps Triggered . | . . Indirectly . | . . Trap Hack Attempts . | . . Triggered . | . . Disarmed . | . . Reprogrammed . | . . Reused . | . . Traps Extracted . | . . Installed . | . . Triggered . | . . Machines | -11 -10 ---------- Run | Yrd Mat Machines Disabled . | . . Max in Single Turn . | . . Machines Repaired . | . . Machines Dismantled . | . . Machines Sabotaged . | . . Overloaded Fab Kills . | . . Hacking | -11 -10 --------- Run | Yrd Mat Machines Accessed 4 | . 4 Terminals 4 | . 4 Fabricators . | . . Repair Stations . | . . Recycling Units . | . . Scanalyzers . | . . Garrison Access . | . . Total Hacks 17 | . 17 Successful 9 | . 9 Failed 8 | . 8 Catastrophic 1 | . 1 Database Lockouts . | . . Manual 13 | . 13 Terminals 17 | . 17 Fabricators . | . . Repair Stations . | . . Recycling Units . | . . Scanalyzers . | . . Garrison Access . | . . Terminal Hacks 5 | . 5 Terminal Index 1 | . 1 Zone Layout 4 | . 4 Fabricator Hacks . | . . Repair Station Hacks . | . . Recycling Unit Hacks . | . . Scanalyzer . | . . Garrison Access Hacks . | . . Unauthorized Hacks 4 | . 4 Terminals 4 | . 4 Assimilate 1 | . 1 Botnet 2 | . 2 Operators 1 | . 1 Fabricators . | . . Repair Stations . | . . Recycling Units . | . . Scanalyzers . | . . Garrison Access . | . . Data Cores Recovered . | . . Used . | . . Hacking Detections 4 | . 4 Full Trace Events . | . . Feedback Events . | . . Feedback Blocked . | . . Robot Schematics Acquired . | . . Robots Built . | . . Authchips . | . . Time . | . . Total Robot Build Rating . | . . Part Schematics Acquired . | . . Parts Built . | . . Authchips . | . . Time . | . . Total Part Build Rating . | . . Part Studies Acquired . | . . Parts Repaired . | . . Time . | . . Parts Recycled . | . . Recycled Matter . | . . Retrieved Matter . | . . Retrieved Components . | . . Parts Scanalyzed . | . . Part Schematics Acquired . | . . Parts Damaged . | . . Bothacking | -11 -10 ------------ Run | Yrd Mat Used RIF Installer . | . . Robots Hacked . | . . Non-combat . | . . Combat . | . . Robot Hacks Applied . | . . Relay Couplers Released . | . . Fabnet Peak Effective % . | . . Robots Rewired . | . . Allies Hacked . | . . Hacks Repelled . | . . Allies | -11 -10 -------- Run | Yrd Mat Total Allies 1 | . 1 Largest Group 1 | . 1 Highest-Rated Group 10 | . 10 Highest-Rated Ally 10 | . 10 Total Orders . | . . Ally Attacks . | . . Total Damage . | . . Kills . | . . Allies Corrupted . | . . Allies Melted . | . . Intel | -11 -10 ------- Run | Yrd Mat Active Infowar (turns) 1015 | 17 998 Seismic 1015 | 17 998 Robot Analysis Total . | . . Derelict Logs Recovered . | . . Drone Launches . | . . Drone Recoveries . | . . Exploration | -11 -10 ------------- Run | Yrd Mat Turns Passed 1090 | 39 1051 Spaces Moved 626 | 24 602 Core 103 | . 103 Treads 500 | 1 499 Legs 23 | 23 . Wheels . | . . Hover . | . . Flight . | . . Fastest Speed 50 | 120 50 Average Speed 140 | 121 141 Slowest Speed 160 | 160 160 Overloaded Moves . | . . Propulsion Burnouts . | . . Robots Hopped . | . . Potential Cave-ins . | . . Cave-ins Triggered . | . . Exploration Rate (%) 37 | 3 72 Regions Visited 1 Branch Regions . Pre-discovered Areas . | . . Known Exits Taken . | . . Unknown Exits Taken 1 | 1 . Scrap Searched . | . . Spaces Dug . | . . Terrain Destroyed . | . . Melee . | . . Projectile . | . . AOE . | . . Terrain Rammed . | . . Walls Destroyed . | . . Machines Disabled . | . . Actions | -11 -10 --------- Run | Yrd Mat Total 761 | 28 733 Wait 85 | . 85 Move 625 | 23 602 Hop . | . . Pick Up 2 | . 2 Fast Attach 2 | 1 1 Attach 2 | . 2 Detach . | . . Swap 3 | 2 1 Drop 2 | . 2 Fire 40 | 2 38 Melee . | . . Ram . | . . Kick . | . . Crush . | . . Escape Stasis . | . . Rewire . | . . Trap . | . . Miscellaneous . | . . Route ------- -11/Scrapyard -10/Materials (discovered 4 exits: [*Mat x3] / [*Min]) History --------- Turn | Location | Event 1 | -11/Scrapyard | Discovered new exit (range 1) 40 | -11/Scrapyard | Entered Materials 224 | -10/Materials | Discovered new exit (range 8) 292 | -10/Materials | Discovered new exit (range 16) 306 | -10/Materials | Build established: Mutant 707 | -10/Materials | Core integrity fell below 50% 1028 | -10/Materials | Core integrity fell below 20% 1038 | -10/Materials | Released all parts (7) 1040 | -10/Materials | Discovered new exit (range 12) 1071 | -10/Materials | Discovered new exit (range 10) 1091 | -10/Materials | Destroyed by S-10 Pest with Light Assault Rifle Last Messages --------------- 01038_ Released Med. Laser. 01039_ Acquired 55 matter. 01040_ R-06 Scavenger collects Med. Laser. 01040_ EXIT=FOUND 01042_ K-01 Serf collects debris. 01071_ EXIT=FOUND 01081_ O-16 Technician: "IFF HANDSHAKE FAILED. SECURING TERMINAL." 01083_ Connecting with Terminal... >>Trojan(Assimilate) Trojan loaded successfully. Testing... System interface override in place. 01083_ Connecting with Terminal... >>Layout(Zone) Retrieving Zone 9C layout... Downloaded map data. 01085_ O-16 Technician accesses terminal... 01085_ O-16 Technician IFF database reprogrammed. Map ----- +----------------------------------------------------+ | ???# # #???????# #????????? | | ???# # """ """ #???????# #????????? | | ???# # """ """ #???????# +????????? | | ???# # """ """ ######### #????????? | | ##?# # ## ##????????? | | #?# # + #?????????? | | #?# # # """ """ #?????????? | | #?# ########### """ """ # ?? | | #?# ???# """ """ # """ ?? | | #?# ???# # """"" ?? | | #?# ???# # """"" ?? | | #?# ???# ################### + """"" ?? | | #?# ???# #??????############ # """ ?? | | #### ???# #??????# # # ?? | | # ???# ######## """"" # # ?? | | # #### # """ # """"" # # ?? | | "" # # """ # """"" + ##?######?? | | "" + # """ # # # #??? | | "" # + #######+#### # #??? | | ???# #### # / s # #??? | | ???# ????# < # ####s # #??? | | ???# ?????# ########??# ""s + #??? | | ???#??????#####?????????# "T # #??? | | ?????????????############ "" ########??? | | ?????????? #??????? | | ?????????? @ #??????? | | ?????????????############/#########+#######??? | | ?????????????????????# # #??? | | ?????????????????????# !! # #??? | | ?????????????????????# !!!# """"" """"" #??? | | ?????????????????????# !! # """"" """"" #??? | | ?????????????????????# # """"" """"" #??? | | ?????????????????????# # #??? | | ?????????????????????######################??? | | | | | | | | | | | | | | | | | | | | | | | | | | | | | | | | | +----------------------------------------------------+ Best States ------------- Heat Dissipation 25 Energy Generation 14 Energy Capacity 160 Matter Stores 300 Matter Capacity 300 Sight Range 16 Terrain Scan Density 10 Evasion (%) 55 Recoil Reduction 2 Item Schematics ----------------- None Robot Schematics ------------------ None Fabricated ------------ Nothing Repaired ---------- Nothing Studied --------- None Alien Tech Used ----------------- None Achievements -------------- None Challenges ------------ None Game ------ Seed SignalTransportHammerchucker Manual? 0 Play Time 00:11:07 Cumulative 43.3 hours Start 2026.06.23 @ 10:47:03 End 2026.06.23 @ 11:01:18 Sessions 1 Manual Loads 0 Difficulty Rogue Special Mode None Game No. 45 Rogue 40 Adventurer 5 Explorer 0 Win Type - Total 1 Types 1/0/0/0/0/0/0/0/0/0 Lore% 29 Gallery% 29 Achievement% 26 Wizard Run 0 Options --------- Layout 1 ASCII 0 Keyboard 1 Movement Arrows Keybinds 0 Fullscreen 1 Font 24/Smallcaps Map View 50x35 Zoom Use 0% Tactical HUD 1 Map Filters NONE Filters NONE Steam 1 RUN: 0825eded-56dc-4947-b618-fd5446f8a903